bitfinex/quotes_SOLUSD_20220114
["timestamp","ask_amount","ask_price","bid_price","bid_amount"]
[1642180775839,34.0431554,147.56,147.51,10.1652]
[1642180776239,30.4216,147.56,147.51,10.1652]
[1642180776439,30.4216,147.56,147.49,10.4166]
[1642180776638,30.4216,147.56,147.48,9.86]
[1642180776839,2.711,147.55,147.48,9.86]
[1642180777139,8.961,147.55,147.48,9.86]
[1642180777539,11.65362955,147.55,147.48,9.86]
[1642180778140,8.961,147.55,147.48,20.0277]
[1642180779141,6.25,147.55,147.48,20.0277]
[1642180779942,6.25,147.55,147.48,9.86]
[1642180780241,2.711,147.54,147.48,9.86]
[1642180780442,8.961,147.54,147.48,9.86]
[1642180780841,6.25,147.54,147.48,9.86]
[1642180781042,2.711,147.53,147.48,9.86]
[1642180781242,0.25,147.54,147.48,9.86]
[1642180782044,2.79408471,147.52,147.48,9.86]
[1642180782244,2.79408471,147.52,147.45,9.86]
[1642180782446,2.712,147.51,147.45,9.86]
[1642180782844,8.962,147.51,147.45,9.86]
[1642180783045,19.1336,147.51,147.45,9.86]
[1642180788655,18.8836,147.51,147.45,9.86]
[1642180789051,12.8836,147.51,147.45,9.86]
[1642180789953,13.1336,147.51,147.45,9.86]
[1642180790551,12.8836,147.51,147.45,9.86]
[1642180790951,18.8836,147.51,147.45,9.86]
[1642180791353,16.1716,147.51,147.45,9.86]
[1642180791851,16.4216,147.51,147.45,9.86]
[1642180792051,2.712,147.5,147.45,9.86]
[1642180792452,2.712,147.5,147.45,10.11]
[1642180792656,6.25,147.51,147.45,10.11]
[1642180792853,6.0,147.51,147.45,10.11]
[1642180793053,20.0423554,147.53,147.45,10.11]
[1642180793655,22.7543554,147.53,147.45,10.11]
[1642180793855,22.8333,147.52,147.45,10.11]
[1642180794056,28.8333,147.52,147.45,10.11]
[1642180794457,28.8333,147.52,147.45,20.2798]
[1642180794656,28.8333,147.52,147.45,20.0298]
[1642180794856,29.0833,147.52,147.45,20.2798]
[1642180795956,6.0,147.52,147.45,20.2798]
[1642180796181,6.0,147.52,147.46,2.712]
[1642180796382,6.0,147.54,147.46,12.8807]
[1642180796581,0.25,147.54,147.46,13.1307]
[1642180797081,33.6454,147.54,147.46,13.1307]
[1642180797483,39.6454,147.54,147.47,29.5094893]
[1642180797883,39.6454,147.54,147.47,29.7594893]
[1642180798484,29.4759,147.54,147.47,29.7594893]
[1642180799086,29.4759,147.54,147.47,0.25]
[1642180799485,29.4759,147.54,147.46,2.961]
[1642180799686,39.6456,147.54,147.46,0.25]
[1642180799883,39.6456,147.54,147.45,12.821]
[1642180800986,39.6456,147.54,147.45,22.9907]
[1642180804793,39.6456,147.54,147.45,12.821]
[1642180804993,39.6456,147.54,147.45,12.571]
[1642180805193,2.711,147.53,147.45,9.86]
[1642180805392,2.711,147.53,147.4,29.76739634]
[1642180805393,10.1735,147.49,147.41,9.86]
[1642180805594,26.7751,147.48,147.41,9.86]
[1642180806396,27.0251,147.48,147.41,9.86]
[1642180806596,27.0251,147.48,147.41,10.11]
[1642180806894,24.3131,147.48,147.41,10.11]
[1642180807093,34.487,147.48,147.41,10.11]
[1642180810899,24.3131,147.48,147.41,10.11]
[1642180812198,24.3131,147.48,147.41,20.2826]
[1642180813301,24.3131,147.48,147.41,19.7826]
[1642180813902,24.3131,147.48,147.41,9.61]
[1642180814103,30.3131,147.48,147.41,9.61]
[1642180814704,24.3131,147.48,147.41,9.61]
[1642180815103,34.4867,147.48,147.38,2.712]
[1642180815305,34.4867,147.48,147.36,33.9097]
[1642180815306,2.712,147.47,147.36,2.712]
[1642180815505,8.962,147.47,147.34,9.86]
[1642180815803,24.2984,147.46,147.34,9.86]
[1642180816005,2.713,147.45,147.34,9.86]
[1642180816203,10.1768,147.44,147.34,9.86]
[1642180816403,27.0376,147.43,147.34,9.86]
[1642180816805,33.2876,147.43,147.34,9.86]
[1642180817304,10.1786,147.41,147.3,12.573]
[1642180817504,26.7998,147.4,147.3,15.86]
[1642180817905,33.0498,147.4,147.3,15.86]
[1642180818105,33.0498,147.4,147.31,28.722305]
[1642180818305,10.1803,147.39,147.31,28.722305]
[1642180818507,2.714,147.38,147.31,28.722305]
[1642180818907,8.964,147.38,147.31,28.722305]
[1642180819107,2.964,147.38,147.31,28.722305]
[1642180819305,0.25,147.38,147.31,28.722305]
[1642180819907,10.4305,147.38,147.31,28.722305]
[1642180820207,2.964,147.39,147.31,28.722305]
[1642180820406,2.964,147.39,147.31,35.124305]
[1642180820607,2.964,147.39,147.31,35.374305]
[1642180820809,0.25,147.39,147.32,2.714]
[1642180821010,6.25,147.43,147.32,2.964]
[1642180821206,2.714,147.42,147.32,2.964]
[1642180821608,33.5692,147.42,147.32,2.964]
[1642180822007,33.5692,147.42,147.32,0.25]
[1642180822207,43.747,147.42,147.31,31.686305]
[1642180823511,43.747,147.42,147.31,31.436305]
[1642180823912,43.747,147.42,147.31,31.686305]
[1642180825211,43.747,147.42,147.31,41.546305]
[1642180825411,43.747,147.42,147.31,51.725705]
[1642180825612,43.747,147.42,147.31,23.0034]
[1642180825811,43.747,147.42,147.31,12.574]
[1642180826013,113.03777588,147.42,147.31,12.574]
[1642180826912,113.03777588,147.42,147.28,9.86]
[1642180827111,113.03777588,147.42,147.25,1.91879645]
[1642180827112,122.89777588,147.42,147.25,14.49279645]
[1642180827312,122.89777588,147.42,147.25,11.77879645]
[1642180827712,129.58896836,147.42,147.25,11.77879645]
[1642180827912,129.58896836,147.42,147.25,41.4351451]
[1642180828712,131.42438782,147.42,147.25,41.4351451]
[1642180829511,129.58896836,147.42,147.25,41.4351451]
[1642180829713,3.54387444,147.41,147.25,41.4351451]
[1642180829913,10.1845,147.33,147.25,41.4351451]
[1642180830314,2.715,147.32,147.25,41.4351451]
[1642180830515,2.965,147.32,147.25,41.6851451]
[1642180831616,10.4347,147.32,147.25,10.11]
[1642180831818,10.4347,147.32,147.25,9.86]
[1642180832817,10.4347,147.32,147.25,10.11]
[1642180833420,10.4347,147.32,147.25,9.86]
[1642180833620,2.715,147.34,147.25,10.11]
[1642180833822,12.8987,147.34,147.25,10.11]
[1642180835321,12.8987,147.34,147.25,20.2937]
[1642180836122,19.1487,147.34,147.25,20.2937]
[1642180836321,18.8987,147.34,147.25,20.2937]
[1642180837547,19.1487,147.34,147.25,9.86]
[1642180838349,19.1487,147.34,147.23,10.1846]
[1642180838549,22.7049,147.33,147.22,12.574]
[1642180838750,10.1872,147.29,147.22,12.574]
[1642180838950,16.4372,147.29,147.22,12.574]
[1642180840551,10.4372,147.29,147.22,12.574]
[1642180840953,2.716,147.28,147.22,12.574]
[1642180841150,10.1885,147.27,147.22,2.714]
[1642180841357,2.716,147.26,147.22,2.714]
[1642180841558,2.966,147.26,147.22,2.714]
[1642180841754,0.25,147.26,147.22,2.714]
[1642180841953,0.25,147.26,147.24,0.63701009]
[1642180842857,29.177,147.28,147.24,31.41200346]
[1642180843058,6.0,147.28,147.24,31.41200346]
[1642180843556,10.1851,147.32,147.24,31.66200346]
[1642180843759,6.0,147.32,147.24,31.66200346]
[1642180843959,26.6744,147.34,147.24,51.70640346]
[1642180843960,23.9594,147.34,147.24,51.70640346]
[1642180844759,26.6744,147.34,147.25,2.715]
[1642180844957,26.9244,147.34,147.26,10.1829]
[1642180845359,26.9244,147.34,147.26,10.4329]
[1642180845559,37.1078,147.34,147.26,10.4329]
[1642180845960,37.1078,147.34,147.26,10.1829]
[1642180846159,37.1078,147.34,147.24,51.45590346]
[1642180846760,37.1078,147.34,147.24,51.70590346]
[1642180847161,26.9244,147.34,147.24,51.70590346]
[1642180847566,24.2094,147.34,147.25,2.715]
[1642180847765,24.2094,147.34,147.26,10.1824]
[1642180847965,24.2094,147.34,147.26,10.4324]
[1642180848364,34.3929,147.34,147.28,1.91879645]
[1642180849367,34.3929,147.34,147.27,1.91879645]
[1642180849566,34.3929,147.34,147.27,2.16879645]
[1642180851368,34.3929,147.34,147.27,1.91879645]
[1642180851970,24.2094,147.34,147.3,0.63701009]
[1642180852370,24.2094,147.34,147.3,28.35815112]
[1642180852570,0.25,147.34,147.3,28.35815112]
[1642180852971,24.1491,147.35,147.3,28.35815112]
[1642180853170,26.8641,147.35,147.3,28.35815112]
[1642180853772,2.965,147.35,147.3,28.35815112]
[1642180853971,0.25,147.35,147.3,28.35815112]
[1642180854481,31.9704,147.37,147.3,28.35815112]
[1642180854674,2.715,147.37,147.3,43.98635112]
[1642180854871,2.715,147.37,147.3,50.23635112]
[1642180855972,0.25,147.37,147.3,43.98635112]
[1642180856175,0.25,147.37,147.3,38.53835112]
[1642180856376,0.25,147.38,147.31,1.91879645]
[1642180856573,2.714,147.37,147.31,1.91879645]
[1642180856775,2.714,147.38,147.31,1.91879645]
[1642180856979,2.964,147.38,147.31,1.91879645]
[1642180857174,0.25,147.38,147.31,1.91879645]
[1642180857383,10.4304,147.38,147.31,1.91879645]
[1642180857573,10.4304,147.38,147.3,40.45714757]
[1642180857774,2.714,147.37,147.3,30.27694757]
[1642180857975,2.964,147.37,147.3,30.27694757]
[1642180858375,0.25,147.37,147.3,28.35815112]
[1642180859174,0.25,147.37,147.3,0.63701009]
[1642180859378,10.1812,147.37,147.3,0.63701009]
[1642180859581,10.4312,147.37,147.3,0.63701009]
[1642180860984,16.4312,147.37,147.3,0.63701009]
[1642180861584,2.714,147.36,147.3,0.63701009]
[1642180861784,10.185,147.33,147.3,1e-08]
[1642180861986,2.715,147.32,147.3,1e-08]
[1642180862385,8.965,147.32,147.3,1e-08]
[1642180862987,10.1862,147.31,147.3,1e-08]
[1642180863385,19.1512,147.31,147.24,1.91879645]
[1642180863611,2.716,147.3,147.24,1.91879645]
[1642180864014,8.966,147.3,147.24,1.91879645]
[1642180864213,10.1889,147.27,147.22,1.91879645]
[1642180864616,16.4389,147.27,147.22,1.91879645]
[1642180865613,16.4389,147.27,147.21,1.91879645]
[1642180865814,12.9053,147.26,147.21,1.91879645]
[1642180866015,16.4393,147.26,147.21,1.91879645]
[1642180866714,10.4393,147.26,147.21,1.91879645]
[1642180868216,2.716,147.27,147.22,28.62943598]
[1642180868417,12.904,147.28,147.22,28.62943598]
[1642180868617,10.188,147.28,147.22,28.62943598]
[1642180868818,10.188,147.28,147.21,1.91879645]
[1642180869417,10.438,147.28,147.22,1.91879645]
[1642180869617,2.716,147.27,147.22,1.91879645]
[1642180869920,10.1902,147.25,147.22,1.91879645]
[1642180870417,10.4402,147.25,147.22,1.91879645]
[1642180870817,10.4402,147.25,147.2,12.576]
[1642180870818,10.4402,147.25,147.21,1.91879645]
[1642180876123,0.25,147.25,147.21,1.91879645]
[1642180876324,2.716,147.28,147.21,1.91879645]
[1642180876528,6.0,147.29,147.21,2.16879645]
[1642180876727,1.83541946,147.31,147.21,4.88479645]
[1642180876728,27.05321946,147.31,147.21,4.88479645]
[1642180876929,27.05321946,147.31,147.21,2.16879645]
[1642180877127,25.2178,147.31,147.22,1.91879645]
[1642180877530,31.2178,147.31,147.22,2.16879645]
[1642180877928,31.2178,147.31,147.23,1.91879645]
[1642180878129,28.5018,147.31,147.23,1.91879645]
[1642180878328,10.1873,147.29,147.23,1.91879645]
[1642180878530,10.4373,147.29,147.23,1.91879645]
[1642180878930,16.4373,147.29,147.23,1.91879645]
[1642180879533,2.716,147.28,147.23,1.91879645]
[1642180879739,10.1904,147.26,147.23,1.91879645]
[1642180879934,16.4404,147.26,147.23,1.91879645]
[1642180880135,16.4404,147.26,147.21,4.63479645]
[1642180881335,16.4404,147.26,147.2,1.91879645]
[1642180884664,10.4404,147.26,147.2,1.91879645]
[1642180886869,10.4404,147.26,147.2,1.82373745]
[1642180887069,10.1879,147.28,147.2,2.07373745]
[1642180887269,2.716,147.29,147.2,8.87573745]
[1642180887470,6.0,147.29,147.21,4.40732679]
[1642180887669,7.83541946,147.3,147.21,4.40732679]
[1642180887872,7.83541946,147.3,147.21,4.65732679]
[1642180888272,23.5066,147.32,147.21,4.65732679]
[1642180888471,29.7566,147.32,147.21,4.65732679]
[1642180889471,10.1866,147.3,147.22,10.1856]
[1642180889871,10.1866,147.3,147.22,10.4356]
[1642180890071,10.1866,147.3,147.23,31.02341115]
[1642180890479,10.1866,147.3,147.23,31.27341115]
[1642180890872,10.4366,147.3,147.23,31.27341115]
[1642180891074,42.4077,147.32,147.23,41.45851115]
[1642180891276,6.0,147.32,147.23,60.89051299]
[1642180891475,2.716,147.33,147.23,134.48051299]
[1642180891674,23.1874,147.35,147.24,2.715]
[1642180891878,2.715,147.34,147.24,2.715]
[1642180892074,2.715,147.35,147.24,2.965]
[1642180892273,8.715,147.36,147.24,25.6143]
[1642180892675,10.1827,147.35,147.24,25.6143]
[1642180892876,2.715,147.34,147.24,22.8993]
[1642180893080,8.965,147.34,147.24,0.25]
[1642180893477,8.965,147.34,147.23,41.13341115]
[1642180893677,24.4335,147.33,147.23,10.11]
[1642180893875,2.715,147.32,147.23,9.86]
[1642180894076,19.1501,147.32,147.22,2.715]
[1642180894277,29.0101,147.32,147.22,2.715]
[1642180894476,67.59,147.31,147.22,2.715]
[1642180894678,2.716,147.3,147.22,2.715]
[1642180895079,8.966,147.3,147.22,2.715]
[1642180895576,10.1895,147.26,147.22,2.715]
[1642180895778,24.6807,147.28,147.22,2.715]
[1642180895976,6.25,147.3,147.22,2.715]
[1642180896178,2.716,147.29,147.22,2.715]
[1642180896578,2.716,147.29,147.22,2.965]
[1642180896779,6.0,147.29,147.22,13.1507]
[1642180896977,10.1866,147.3,147.22,13.1507]
[1642180897180,10.1866,147.3,147.22,10.4357]
[1642180898080,10.4366,147.3,147.22,10.4357]
[1642180900083,10.4366,147.3,147.23,2.716]
[1642180900383,10.4366,147.3,147.24,31.35910338]
[1642180900585,10.4366,147.3,147.24,31.60910338]
[1642180900983,10.4366,147.3,147.24,0.25]
[1642180901884,10.4366,147.3,147.23,2.966]
[1642180902084,16.4366,147.3,147.23,2.966]
[1642180902287,10.4366,147.3,147.23,2.966]
[1642180903486,16.4366,147.3,147.23,2.716]
[1642180903684,16.4366,147.3,147.22,2.716]
[1642180903885,2.716,147.29,147.2,39.0168929]
[1642180904088,10.1874,147.28,147.2,39.0168929]
[1642180904586,10.4374,147.28,147.21,23.13208176]
[1642180904786,0.25,147.28,147.21,23.13208176]
[1642180904986,6.25,147.28,147.21,33.31848176]
[1642180905286,6.0,147.28,147.21,33.56848176]
[1642180905486,28.7013,147.29,147.21,33.56848176]
[1642180905687,6.0,147.29,147.21,33.56848176]
[1642180905989,8.716,147.31,147.21,33.56848176]
[1642180906188,27.2906,147.31,147.22,2.716]
[1642180906389,10.1865,147.3,147.22,2.716]
[1642180906587,10.4365,147.3,147.22,2.716]
[1642180907387,16.4365,147.3,147.22,2.966]
[1642180907786,10.188,147.28,147.22,0.25]
[1642180907988,10.438,147.28,147.22,0.25]
[1642180908614,10.438,147.28,147.19,51.45062255]
[1642180908788,10.438,147.28,147.19,48.73462255]
[1642180909489,16.438,147.28,147.19,48.73462255]
[1642180910089,16.188,147.28,147.19,50.42162439]
[1642180910990,6.0,147.28,147.19,50.42162439]
[1642180911591,29.8946,147.29,147.19,50.42162439]
[1642180911790,29.8946,147.29,147.19,54.25921729]
[1642180911992,40.3314,147.29,147.2,14.05972852]
[1642180912391,40.3314,147.29,147.2,14.30972852]
[1642180912591,40.3314,147.29,147.2,10.4368]
[1642180913095,40.3314,147.29,147.2,13.1528]
[1642180914295,40.0814,147.29,147.2,13.1528]
[1642180915797,40.3314,147.29,147.2,13.1528]
[1642180921629,39.8314,147.29,147.2,13.1528]
[1642180922228,2.716,147.28,147.2,12.9028]
[1642180922429,2.716,147.28,147.2,10.1868]
[1642180922729,8.966,147.28,147.2,10.1868]
[1642180924529,8.966,147.28,147.2,10.4368]
[1642180925028,19.1534,147.28,147.2,10.4368]
[1642180925628,16.4374,147.28,147.2,10.4368]
[1642180927229,16.4374,147.28,147.18,41.0784929]
[1642180927428,25.3405,147.27,147.18,3.8375929]
[1642180927629,10.1894,147.25,147.18,3.8375929]
[1642180928128,10.1894,147.25,147.17,41.11360342]
[1642180928729,10.1894,147.25,147.17,41.36360342]
[1642180929331,10.1894,147.25,147.17,51.55300342]
[1642180930534,10.4394,147.25,147.17,51.30300342]
[1642180931449,16.4394,147.25,147.17,51.30300342]
[1642180931850,10.4394,147.25,147.17,51.30300342]
[1642180932052,0.25,147.25,147.17,51.55300342]
[1642180932253,12.9047,147.27,147.17,51.55300342]
[1642180932452,16.4387,147.27,147.18,12.9052]
[1642180933053,16.4387,147.27,147.18,13.1552]
[1642180933661,16.4387,147.27,147.18,10.4382]
[1642180935184,16.1887,147.27,147.18,10.4382]
[1642180936589,16.4387,147.27,147.18,10.4382]
[1642180938091,16.4387,147.27,147.17,12.576]
[1642180938291,22.1107,147.27,147.17,2.716]
[1642180939293,22.1107,147.27,147.16,3.8375929]
[1642180939294,10.1925,147.21,147.16,3.8375929]
[1642180939492,10.4425,147.21,147.16,3.8375929]
[1642180939699,10.4425,147.21,147.14,3.8375929]
[1642180940692,0.25,147.21,147.14,14.0290929]
[1642180941093,22.8472,147.22,147.14,10.1915]
[1642180941294,22.8472,147.22,147.14,12.14227588]
[1642180942296,35.7558,147.22,147.14,10.4415]
[1642180942505,33.0388,147.22,147.14,10.4415]
[1642180944303,22.8472,147.22,147.14,12.14227588]
[1642180944705,0.25,147.22,147.14,12.14227588]
[1642180945110,8.967,147.24,147.14,14.85927588]
[1642180945310,6.25,147.24,147.14,12.14227588]
[1642180945508,25.3582,147.23,147.14,12.14227588]
[1642180945908,25.6082,147.23,147.14,12.14227588]
[1642180946136,25.6082,147.23,147.15,3.87398315]
[1642180946336,33.0821,147.23,147.15,3.87398315]
[1642180946536,33.0821,147.23,147.15,4.12398315]
[1642180948038,33.0821,147.23,147.15,0.25]
[1642180948538,33.0821,147.23,147.14,12.14227588]
[1642180948939,33.0821,147.23,147.14,10.4415]
[1642180949341,33.0821,147.23,147.13,12.577]
[1642180949544,10.1936,147.19,147.13,9.86]
[1642180950840,10.4436,147.19,147.13,9.86]
[1642180952745,16.4436,147.19,147.13,9.86]
[1642180954643,16.4436,147.19,147.1,47.94401574]
[1642180954844,23.735,147.18,147.1,48.19401574]
[1642180955043,34.1797,147.18,147.1,48.19401574]
[1642180955843,34.1797,147.18,147.1,10.11]
[1642180956044,36.8977,147.18,147.1,10.11]
[1642180956445,36.8977,147.18,147.1,9.86]
[1642180956647,42.8977,147.18,147.1,9.86]
[1642180956944,40.1797,147.18,147.1,9.86]
[1642180957146,2.718,147.17,147.1,9.86]
[1642180957446,0.25,147.17,147.1,9.86]
[1642180957748,10.1966,147.15,147.1,9.86]
[1642180957948,10.4466,147.15,147.1,9.86]
[1642180958548,16.4466,147.15,147.1,9.86]
[1642180958949,16.4466,147.15,147.08,3.8375929]
[1642180959649,16.4466,147.15,147.07,35.70060451]
[1642180959650,16.4466,147.15,147.06,35.69619731]
[1642180959854,2.719,147.14,147.06,3.8375929]
[1642180960053,10.1981,147.13,147.06,3.8375929]
[1642180960452,16.4481,147.13,147.06,3.8375929]
[1642180960651,16.4481,147.13,147.07,3.87602596]
[1642180962054,10.2003,147.1,147.06,3.8375929]
[1642180962255,10.2003,147.1,147.01,20.0602]
[1642180962256,18.7943,147.1,147.01,2.719]
[1642180962453,22.5245,147.09,147.01,2.719]
[1642180962652,22.5245,147.09,147.0,2.72]
[1642180962854,2.72,147.08,146.97,10.49930126]
[1642180963157,24.7917,147.07,146.97,0.63930126]
[1642180963451,12.9226,147.06,146.97,0.63930126]
[1642180963653,10.2026,147.06,147.0,3.8375929]
[1642180963953,2.72,147.05,147.0,3.8375929]
[1642180964353,35.0,147.04,146.97,6.39439778]
[1642180964554,2.72,147.03,146.97,6.39439778]
[1642180964757,12.9258,147.03,146.97,6.39439778]
[1642180964953,19.1758,147.03,146.97,6.39439778]
[1642180965154,19.1758,147.03,146.97,0.63930126]
[1642180970359,12.9258,147.03,146.97,0.63930126]
[1642180970562,56.9404,147.06,146.97,0.63930126]
[1642180970563,10.2039,147.05,146.97,13.56370126]
[1642180970959,16.2039,147.05,146.97,3.61030126]
[1642180971159,18.9239,147.05,146.97,3.36030126]
[1642180971558,19.1739,147.05,146.97,3.36030126]
[1642180972359,19.1739,147.05,146.97,2.721]
[1642180974364,43.7259,147.05,146.92,9.86]
[1642180974962,53.5859,147.05,146.92,9.86]
[1642180976365,55.28667588,147.05,146.93,3.87982026]
[1642180976566,178.54667588,147.05,146.93,3.87982026]
[1642180976764,10.211,146.99,146.93,3.87982026]
[1642180976967,2.721,146.98,146.93,3.87982026]
[1642180977366,8.971,146.98,146.91,3.87982026]
[1642180978568,10.2113,146.96,146.87,3.87982026]
[1642180978765,2.722,146.95,146.87,3.87982026]
[1642180978965,2.972,146.95,146.87,3.87982026]
[1642180979166,0.25,146.95,146.87,3.87982026]
[1642180979367,10.2119,146.93,146.87,3.87982026]
[1642180979571,10.4619,146.93,146.86,3.87982026]
[1642180979770,16.4619,146.93,146.86,3.87982026]
[1642180981774,73.583,146.92,146.82,5.75509652]
[1642180981973,10.2171,146.87,146.82,5.75509652]
[1642180982172,69.47367588,146.92,146.82,5.75509652]
[1642180982374,65.0499,146.92,146.82,5.75509652]
[1642180982573,65.0499,146.92,146.83,29.4045886]
[1642180982774,2.723,146.91,146.83,27.70381272]
[1642180982972,8.973,146.91,146.83,27.70381272]
[1642180983174,19.1862,146.91,146.83,27.70381272]
[1642180984172,8.973,146.91,146.83,37.91661272]
[1642180984374,6.0,146.91,146.83,39.8673886]
[1642180984573,16.2124,146.93,146.83,39.8673886]
[1642180985577,16.4624,146.93,146.83,39.8673886]
[1642180985778,16.4624,146.93,146.83,45.8673886]
[1642180985975,2.723,146.92,146.83,55.7273886]
[1642180986176,8.723,146.92,146.83,49.7273886]
[1642180986379,8.973,146.92,146.83,48.02661272]
[1642180986777,8.973,146.92,146.83,49.7273886]
[1642180987406,6.25,146.92,146.83,49.7273886]
[1642180987907,0.25,146.92,146.83,49.7273886]
[1642180988107,0.25,146.92,146.83,123.3173886]
[1642180988308,8.723,146.95,146.83,123.3173886]
[1642180988607,8.723,146.95,146.83,129.8043886]
[1642180988811,6.0,146.95,146.83,129.8043886]
[1642180989010,30.1387,146.98,146.83,253.0643886]
[1642180990209,40.3471,146.98,146.83,183.51361272]
[1642180990409,27.2625,146.97,146.84,23.6136]
[1642180990609,27.2625,146.97,146.85,9.86]
[1642180990808,33.5125,146.97,146.87,10.2103]
[1642180991010,33.5125,146.97,146.88,9.86]
[1642180991211,10.2103,146.96,146.88,9.86]
[1642180991411,10.2103,146.96,146.88,10.11]
[1642180991710,16.4603,146.96,146.88,10.11]
[1642180994015,16.4603,146.96,146.88,9.86]
[1642180994213,16.4603,146.96,146.88,20.0695]
[1642180995021,16.4603,146.96,146.89,27.17487029]
[1642180995215,2.722,146.95,146.91,10.207]
[1642180995415,0.25,146.96,146.91,10.207]
[1642180995614,0.25,146.96,146.91,10.457]
[1642180995818,0.25,146.99,146.91,10.457]
[1642180996014,27.2443,147.01,146.91,10.457]
[1642180996015,27.4943,147.01,146.91,10.457]
[1642180996414,33.4943,147.01,146.91,10.457]
[1642180996613,27.2443,147.01,146.91,10.457]
[1642180996817,2.722,147.01,146.92,67.59]
[1642180997014,25.2233,147.06,146.97,29.76052506]
[1642180998017,31.2233,147.06,146.97,29.76052506]
[1642180998517,41.6765,147.06,146.98,10.2025]
[1642180999420,41.4265,147.06,146.98,10.2025]
[1642181000424,18.9242,147.06,146.98,10.2025]
[1642181000620,8.721,147.06,146.98,10.4525]
[1642181000820,6.0,147.06,146.98,78.0425]
[1642181001018,6.0,147.09,146.99,9.86]
[1642181001420,8.72,147.11,147.04,34.8784209]
[1642181001621,8.72,147.11,147.04,41.1284209]
[1642181001820,6.0,147.11,147.04,41.1284209]
[1642181002023,2.719,147.1,147.04,30.9300209]
[1642181002222,10.1992,147.11,147.04,30.9300209]
[1642181002421,2.719,147.1,147.04,30.9300209]
[1642181002627,16.4492,147.11,147.04,30.9300209]
[1642181002824,16.4492,147.11,147.04,24.6800209]
[1642181003425,16.1992,147.11,147.04,24.6800209]
[1642181004025,6.0,147.11,147.04,34.8785209]
[1642181004225,18.9173,147.13,147.04,34.8785209]
[1642181004425,8.719,147.13,147.04,35.1285209]
[1642181004627,2.719,147.13,147.04,35.1285209]
[1642181005424,46.721,147.14,147.04,35.1285209]
[1642181005625,2.719,147.15,147.04,35.1285209]
[1642181005825,8.719,147.15,147.04,35.1285209]
[1642181006026,8.969,147.15,147.04,35.1285209]
[1642181006226,2.719,147.15,147.05,9.86]
[1642181006527,8.22525838,147.18,147.11,10.1919]
[1642181006727,5.50625838,147.18,147.12,27.62404965]
[1642181007227,5.50625838,147.18,147.12,27.87404965]
[1642181007625,5.50625838,147.18,147.13,10.1917]
[1642181007827,1.84929895,147.16,147.09,9.86]
[1642181008629,2.09929895,147.16,147.09,9.86]
[1642181008829,13.99587483,147.16,147.09,9.86]
[1642181009229,12.29509895,147.16,147.09,9.86]
[1642181009431,18.29509895,147.16,147.09,9.86]
[1642181010034,1.84929895,147.14,147.09,9.86]
[1642181010429,1.84929895,147.14,147.09,10.11]
[1642181010632,2.09929895,147.14,147.09,9.86]
[1642181010929,0.25,147.14,147.09,10.11]
[1642181011130,1.84929895,147.15,147.09,10.11]
[1642181011330,7.84929895,147.15,147.09,10.11]
[1642181012433,7.84929895,147.15,147.09,9.86]
[1642181012633,8.09929895,147.15,147.05,1.93815936]
[1642181012832,2.719,147.14,147.05,1.93815936]
[1642181013032,32.4198,147.14,147.05,1.93815936]
[1642181014034,1.84929895,147.11,147.01,29.6352794]
[1642181014234,12.04849895,147.11,147.03,10.1988]
[1642181014434,8.09929895,147.11,147.03,10.1988]